[Event "Early-Titled-Tuesday-Blitz-September-26-2023"]
[Site "Chess.com"]
[Date "2023.09.26"]
[Round "3"]
[White "Hasangatin_Ramil"]
[Black "rasmussvane"]
[Result "1/2-1/2"]
[WhiteElo "2716"]
[BlackElo "2993"]
[TimeControl "180+1"]
[EndTime "8:28:08 PDT"]
[Termination "Game drawn by repetition"]

1. e4 {[%clk 0:03:00.9]} 1... c6 {[%clk 0:02:59.9]} 2. d4 {[%clk 0:03:00.2]}
2... d5 {[%clk 0:03:00.8]} 3. Nd2 {[%clk 0:03:00.8]} 3... dxe4 {[%clk 0:03:01]}
4. Nxe4 {[%clk 0:03:01.7]} 4... Nf6 {[%clk 0:03:01.2]} 5. Nxf6+ {[%clk
0:03:01.7]} 5... exf6 {[%clk 0:03:02.1]} 6. c3 {[%clk 0:03:00.8]} 6... Bd6
{[%clk 0:03:02.2]} 7. Bd3 {[%clk 0:03:01.2]} 7... O-O {[%clk 0:03:02.9]} 8. Qc2
{[%clk 0:03:01.8]} 8... Re8+ {[%clk 0:03:03.6]} 9. Ne2 {[%clk 0:03:02.3]} 9...
h5 {[%clk 0:03:04.2]} 10. h3 {[%clk 0:03:01.8]} 10... Nd7 {[%clk 0:03:02.9]} 11.
Be3 {[%clk 0:03:01.9]} 11... Nf8 {[%clk 0:03:03.2]} 12. O-O-O {[%clk 0:03:01.5]}
12... Be6 {[%clk 0:03:02.2]} 13. Kb1 {[%clk 0:03:01.4]} 13... b5 {[%clk
0:03:02.1]} 14. Bf4 {[%clk 0:02:56.4]} 14... a5 {[%clk 0:02:53.9]} 15. Bxd6
{[%clk 0:02:54.8]} 15... Qxd6 {[%clk 0:02:54.8]} 16. Nc1 {[%clk 0:02:37.8]}
16... a4 {[%clk 0:02:48.6]} 17. Rhe1 {[%clk 0:02:37.3]} 17... b4 {[%clk
0:02:40]} 18. cxb4 {[%clk 0:02:32.8]} 18... Qxb4 {[%clk 0:02:40.9]} 19. a3
{[%clk 0:02:12.1]} 19... Qb7 {[%clk 0:02:20.3]} 20. Bc4 {[%clk 0:02:09.4]} 20...
Red8 {[%clk 0:02:04.5]} 21. Na2 {[%clk 0:01:58]} 21... Bxc4 {[%clk 0:01:49.3]}
22. Qxc4 {[%clk 0:01:57.3]} 22... Ne6 {[%clk 0:01:49.1]} 23. Nb4 {[%clk
0:01:56.8]} 23... Rd6 {[%clk 0:01:49.5]} 24. Rd3 {[%clk 0:01:25.6]} 24... Rad8
{[%clk 0:01:49.2]} 25. Red1 {[%clk 0:01:25.5]} 25... Nf4 {[%clk 0:01:12.9]} 26.
Rc3 {[%clk 0:01:18.4]} 26... c5 {[%clk 0:00:54.4]} 27. Qxc5 {[%clk 0:01:11.4]}
27... Qxg2 {[%clk 0:00:53.5]} 28. Nc6 {[%clk 0:01:02.8]} 28... Qe4+ {[%clk
0:00:45.9]} 29. Ka1 {[%clk 0:00:59.3]} 29... R8d7 {[%clk 0:00:40.3]} 30. Re3
{[%clk 0:00:56.9]} 30... Qxc6 {[%clk 0:00:18]} 31. Re8+ {[%clk 0:00:50.5]} 31...
Kh7 {[%clk 0:00:17.7]} 32. Qf5+ {[%clk 0:00:51]} 32... g6 {[%clk 0:00:18.3]} 33.
Qxf4 {[%clk 0:00:51.2]} 33... Qc2 {[%clk 0:00:14]} 34. Rde1 {[%clk 0:00:47.2]}
34... Kg7 {[%clk 0:00:04.5]} 35. Rh8 {[%clk 0:00:39.8]} 35... g5 {[%clk
0:00:04.5]} 36. Ree8 {[%clk 0:00:31.5]} 36... Qd1+ {[%clk 0:00:04.8]} 37. Ka2
{[%clk 0:00:31.3]} 37... Qb3+ {[%clk 0:00:05.4]} 38. Ka1 {[%clk 0:00:31.4]}
38... Qd1+ {[%clk 0:00:04.6]} 39. Ka2 {[%clk 0:00:31.5]} 39... Qb3+ {[%clk
0:00:04.1]} 40. Ka1 {[%clk 0:00:31.6]} 40... Qd1+ {[%clk 0:00:02.2]} 1/2-1/2

[Event "Early-Titled-Tuesday-Blitz-September-26-2023"]
[Site "Chess.com"]
[Date "2023.09.26"]
[Round "3"]
[White "A-Fier"]
[Black "LikeWater"]
[Result "1-0"]
[WhiteElo "2820"]
[BlackElo "2611"]
[TimeControl "180+1"]
[EndTime "8:28:10 PDT"]
[Termination "A-Fier won on time"]

1. d4 {[%clk 0:03:00.9]} 1... e6 {[%clk 0:02:58.6]} 2. h4 {[%clk 0:02:59.1]}
2... c5 {[%clk 0:02:57.1]} 3. c3 {[%clk 0:02:56.8]} 3... Nc6 {[%clk 0:02:54.5]}
4. Bg5 {[%clk 0:02:56.6]} 4... Qb6 {[%clk 0:02:53.4]} 5. Na3 {[%clk 0:02:51.2]}
5... Qxb2 {[%clk 0:02:50.3]} 6. Nc4 {[%clk 0:02:51.6]} 6... Qxc3+ {[%clk
0:02:50.3]} 7. Nd2 {[%clk 0:02:52.2]} 7... cxd4 {[%clk 0:02:40.8]} 8. Rc1 {[%clk
0:02:51.6]} 8... Qa5 {[%clk 0:02:40.8]} 9. e3 {[%clk 0:02:51.2]} 9... h6 {[%clk
0:02:39.2]} 10. Bf4 {[%clk 0:02:51.1]} 10... e5 {[%clk 0:02:39.3]} 11. Bg3
{[%clk 0:02:51.3]} 11... dxe3 {[%clk 0:02:38.6]} 12. fxe3 {[%clk 0:02:51.8]}
12... Nf6 {[%clk 0:02:37]} 13. Nf3 {[%clk 0:02:52]} 13... Ne4 {[%clk 0:02:33.9]}
14. Bh2 {[%clk 0:02:52.3]} 14... Bb4 {[%clk 0:02:31.6]} 15. Rc2 {[%clk
0:02:52.7]} 15... d5 {[%clk 0:02:28.3]} 16. Bd3 {[%clk 0:02:48.7]} 16... Nxd2
{[%clk 0:02:28.4]} 17. Nxd2 {[%clk 0:02:48.8]} 17... e4 {[%clk 0:02:21.5]} 18.
Be2 {[%clk 0:02:41.3]} 18... Bc5 {[%clk 0:02:11.3]} 19. O-O {[%clk 0:02:36.4]}
19... Bxe3+ {[%clk 0:02:11.7]} 20. Kh1 {[%clk 0:02:37.1]} 20... O-O {[%clk
0:02:10]} 21. Nb3 {[%clk 0:02:36.6]} 21... Qd8 {[%clk 0:02:10.7]} 22. Bb5 {[%clk
0:02:30.6]} 22... d4 {[%clk 0:01:57.9]} 23. Nc5 {[%clk 0:02:10.9]} 23... Qxh4
{[%clk 0:01:49.9]} 24. Rb2 {[%clk 0:01:58]} 24... a6 {[%clk 0:01:40.7]} 25. Bc4
{[%clk 0:01:58]} 25... Ne5 {[%clk 0:01:36.2]} 26. Bd5 {[%clk 0:01:50.9]} 26...
Ng4 {[%clk 0:01:31.2]} 27. g3 {[%clk 0:01:51.5]} 27... Qh5 {[%clk 0:01:29.2]}
28. Qb3 {[%clk 0:01:48]} 28... Qh3 {[%clk 0:00:50.7]} 29. Qd1 {[%clk 0:01:44.7]}
29... Qh5 {[%clk 0:00:43.1]} 30. Qb3 {[%clk 0:01:43.9]} 30... Be6 {[%clk
0:00:41.7]} 31. Nxe6 {[%clk 0:01:16.6]} 31... fxe6 {[%clk 0:00:42.6]} 32. Bxe6+
{[%clk 0:01:17.5]} 32... Kh8 {[%clk 0:00:39]} 33. Bf7 {[%clk 0:01:13.5]} 33...
Qh3 {[%clk 0:00:29.2]} 34. Qd1 {[%clk 0:01:05.8]} 34... Ne5 {[%clk 0:00:26.7]}
35. Rxb7 {[%clk 0:01:03.1]} 35... Nf3 {[%clk 0:00:18.7]} 36. Rxf3 {[%clk
0:00:59.9]} 36... exf3 {[%clk 0:00:19.6]} 37. Qxf3 {[%clk 0:01:00.7]} 37... Rac8
{[%clk 0:00:15.4]} 38. Rb1 {[%clk 0:00:48.1]} 38... Rc7 {[%clk 0:00:10.6]} 39.
Be6 {[%clk 0:00:48.1]} 39... Qxh2+ {[%clk 0:00:10.6]} 40. Kxh2 {[%clk
0:00:48.2]} 40... Rxf3 {[%clk 0:00:11.5]} 41. Bd5 {[%clk 0:00:46]} 1-0

[Event "Early-Titled-Tuesday-Blitz-September-26-2023"]
[Site "Chess.com"]
[Date "2023.09.26"]
[Round "3"]
[White "BigAl"]
[Black "Artemiki"]
[Result "1-0"]
[WhiteElo "2550"]
[BlackElo "2214"]
[TimeControl "180+1"]
[EndTime "8:28:11 PDT"]
[Termination "BigAl won on time"]

1. Nf3 {[%clk 0:03:00.9]} 1... Nf6 {[%clk 0:02:54.6]} 2. g3 {[%clk 0:03:00.6]}
2... e6 {[%clk 0:02:52.2]} 3. Bg2 {[%clk 0:03:01.1]} 3... d5 {[%clk 0:02:52.9]}
4. O-O {[%clk 0:03:01.9]} 4... Be7 {[%clk 0:02:53.8]} 5. d3 {[%clk 0:03:02.6]}
5... O-O {[%clk 0:02:54.4]} 6. Nbd2 {[%clk 0:03:03.1]} 6... c5 {[%clk
0:02:54.9]} 7. e4 {[%clk 0:03:03.7]} 7... Nc6 {[%clk 0:02:55.6]} 8. Re1 {[%clk
0:03:04.4]} 8... Qc7 {[%clk 0:02:55.3]} 9. e5 {[%clk 0:02:59.2]} 9... Nd7 {[%clk
0:02:55]} 10. Qe2 {[%clk 0:02:59.9]} 10... b5 {[%clk 0:02:54.6]} 11. h4 {[%clk
0:02:48]} 11... a5 {[%clk 0:02:53.2]} 12. h5 {[%clk 0:02:46.7]} 12... a4 {[%clk
0:02:46.4]} 13. h6 {[%clk 0:02:46]} 13... g6 {[%clk 0:02:44.3]} 14. a3 {[%clk
0:02:44.9]} 14... b4 {[%clk 0:02:39.6]} 15. Nf1 {[%clk 0:02:44.9]} 15... Ba6
{[%clk 0:02:36.3]} 16. c3 {[%clk 0:02:34.8]} 16... bxc3 {[%clk 0:02:17.2]} 17.
bxc3 {[%clk 0:02:34.7]} 17... Rab8 {[%clk 0:02:13.4]} 18. Bf4 {[%clk 0:02:25.1]}
18... Rb3 {[%clk 0:02:04.6]} 19. c4 {[%clk 0:02:21.7]} 19... dxc4 {[%clk
0:01:50.9]} 20. dxc4 {[%clk 0:02:21.4]} 20... Rfb8 {[%clk 0:01:48.7]} 21. Red1
{[%clk 0:02:14.3]} 21... Na5 {[%clk 0:01:39.1]} 22. Ne3 {[%clk 0:02:04.4]} 22...
Nb6 {[%clk 0:01:31.5]} 23. Rac1 {[%clk 0:01:39]} 23... Rxa3 {[%clk 0:01:29.3]}
24. Bg5 {[%clk 0:01:38.5]} 24... Bf8 {[%clk 0:01:21.9]} 25. Ng4 {[%clk
0:01:35.5]} 25... Nbxc4 {[%clk 0:01:12.3]} 26. Nf6+ {[%clk 0:01:34.9]} 26... Kh8
{[%clk 0:01:12.1]} 27. Rd7 {[%clk 0:01:33.2]} 27... Qc8 {[%clk 0:00:37.1]} 28.
Rxf7 {[%clk 0:01:31.7]} 28... Rb7 {[%clk 0:00:37.8]} 29. Rxb7 {[%clk 0:01:17.3]}
29... Qxb7 {[%clk 0:00:33.1]} 30. Rd1 {[%clk 0:01:06.6]} 30... Ne3 {[%clk
0:00:08.3]} 31. Rd8 {[%clk 0:01:02.1]} 31... Qe7 {[%clk 0:00:07]} 32. Qxa6
{[%clk 0:00:47.2]} 32... Qxd8 {[%clk 0:00:06.2]} 33. Qxe6 {[%clk 0:00:47.9]}
33... Ra1+ {[%clk 0:00:03.8]} 34. Kh2 {[%clk 0:00:47.1]} 34... Be7 {[%clk
0:00:03.1]} 35. Qf7 {[%clk 0:00:45.9]} 35... Ng4+ {[%clk 0:00:02.1]} 36. Nxg4
{[%clk 0:00:38.5]} 36... Qf8 {[%clk 0:00:01.3]} 37. Bf6+ {[%clk 0:00:28.1]} 1-0

[Event "Early-Titled-Tuesday-Blitz-September-26-2023"]
[Site "Chess.com"]
[Date "2023.09.26"]
[Round "3"]
[White "IngOscarArdila"]
[Black "nicholas_ilic"]
[Result "1-0"]
[WhiteElo "2387"]
[BlackElo "2196"]
[TimeControl "180+1"]
[EndTime "8:28:12 PDT"]
[Termination "IngOscarArdila won on time"]

1. d4 {[%clk 0:03:00.2]} 1... Nf6 {[%clk 0:02:57.9]} 2. c4 {[%clk 0:03:00.5]}
2... e6 {[%clk 0:02:41.5]} 3. Nc3 {[%clk 0:03:00.8]} 3... Bb4 {[%clk 0:02:34.1]}
4. Bd2 {[%clk 0:03:01.2]} 4... c5 {[%clk 0:02:26]} 5. Nf3 {[%clk 0:02:59.4]}
5... Bxc3 {[%clk 0:02:20.2]} 6. Bxc3 {[%clk 0:02:59.4]} 6... Ne4 {[%clk
0:02:20.8]} 7. Rc1 {[%clk 0:02:59.1]} 7... Nxc3 {[%clk 0:02:19.9]} 8. Rxc3
{[%clk 0:02:59.1]} 8... cxd4 {[%clk 0:02:20.6]} 9. Qxd4 {[%clk 0:02:57.6]} 9...
Nc6 {[%clk 0:02:20.6]} 10. Qxg7 {[%clk 0:02:56]} 10... Rf8 {[%clk 0:02:20.3]}
11. e3 {[%clk 0:02:53.1]} 11... b6 {[%clk 0:02:13.5]} 12. Be2 {[%clk 0:02:52.3]}
12... Bb7 {[%clk 0:02:13.7]} 13. O-O {[%clk 0:02:52.2]} 13... Qc7 {[%clk
0:02:14.1]} 14. Qf6 {[%clk 0:02:50.4]} 14... Ne7 {[%clk 0:02:03.7]} 15. Rd1
{[%clk 0:02:42]} 15... Rg8 {[%clk 0:02:02.7]} 16. g3 {[%clk 0:02:36.8]} 16...
Rg6 {[%clk 0:01:57.1]} 17. Qe5 {[%clk 0:02:33.5]} 17... Qc6 {[%clk 0:01:27.8]}
18. Qd6 {[%clk 0:02:33.3]} 18... Qxd6 {[%clk 0:01:23.9]} 19. Rxd6 {[%clk
0:02:32.7]} 19... Nf5 {[%clk 0:01:23.9]} 20. Rd2 {[%clk 0:02:19.2]} 20... d6
{[%clk 0:01:15.1]} 21. b4 {[%clk 0:02:03.7]} 21... Rc8 {[%clk 0:01:12.7]} 22.
Kf1 {[%clk 0:01:55.2]} 22... Ke7 {[%clk 0:01:11]} 23. Ke1 {[%clk 0:01:50.7]}
23... h5 {[%clk 0:01:10.1]} 24. h4 {[%clk 0:01:49.2]} 24... Rh6 {[%clk
0:00:58.5]} 25. Nd4 {[%clk 0:01:47.1]} 25... Nxd4 {[%clk 0:00:54.6]} 26. Rxd4
{[%clk 0:01:48]} 26... e5 {[%clk 0:00:52.2]} 27. Rd2 {[%clk 0:01:46]} 27... f5
{[%clk 0:00:51.3]} 28. a4 {[%clk 0:01:39.4]} 28... f4 {[%clk 0:00:36.8]} 29.
exf4 {[%clk 0:01:36.1]} 29... exf4 {[%clk 0:00:37.7]} 30. Rd4 {[%clk 0:01:30.7]}
30... fxg3 {[%clk 0:00:36.5]} 31. fxg3 {[%clk 0:01:31]} 31... Re6 {[%clk
0:00:34.3]} 32. Kf2 {[%clk 0:01:24.8]} 32... Re5 {[%clk 0:00:23]} 33. Rf4 {[%clk
0:01:20.1]} 33... Ke6 {[%clk 0:00:18.6]} 34. Re3 {[%clk 0:01:16.4]} 34... Rxe3
{[%clk 0:00:17.3]} 35. Kxe3 {[%clk 0:01:16.7]} 35... d5 {[%clk 0:00:17.6]} 36.
Bxh5 {[%clk 0:01:04.8]} 36... dxc4 {[%clk 0:00:17.5]} 37. Bf7+ {[%clk 0:01:05]}
37... Ke5 {[%clk 0:00:15.7]} 38. Bxc4 {[%clk 0:01:01.2]} 38... Rd8 {[%clk
0:00:09.5]} 39. h5 {[%clk 0:01:01]} 39... Rd1 {[%clk 0:00:08.9]} 40. h6 {[%clk
0:01:00.6]} 40... Rh1 {[%clk 0:00:08.4]} 41. Rh4 {[%clk 0:00:58.8]} 41... Rxh4
{[%clk 0:00:04.7]} 42. gxh4 {[%clk 0:00:58.7]} 42... Kf6 {[%clk 0:00:05.4]} 43.
h7 {[%clk 0:00:56.6]} 43... Kg7 {[%clk 0:00:05.1]} 44. Bd3 {[%clk 0:00:55.3]}
44... Bc6 {[%clk 0:00:05.5]} 45. a5 {[%clk 0:00:53.9]} 45... bxa5 {[%clk
0:00:05.3]} 46. bxa5 {[%clk 0:00:54.1]} 46... Bb7 {[%clk 0:00:02.8]} 47. Kd4
{[%clk 0:00:54.2]} 47... Bc8 {[%clk 0:00:02.7]} 48. Kc5 {[%clk 0:00:54.4]} 48...
Bb7 {[%clk 0:00:02.2]} 49. Kd6 {[%clk 0:00:54.5]} 49... Bf3 {[%clk 0:00:01.5]}
50. Kc7 {[%clk 0:00:54.2]} 50... a6 {[%clk 0:00:01.8]} 51. Kb6 {[%clk 0:00:54]}
1-0

[Event "Early-Titled-Tuesday-Blitz-September-26-2023"]
[Site "Chess.com"]
[Date "2023.09.26"]
[Round "3"]
[White "pankajfm"]
[Black "pirulillo"]
[Result "1/2-1/2"]
[WhiteElo "2101"]
[BlackElo "2356"]
[TimeControl "180+1"]
[EndTime "8:28:13 PDT"]
[Termination "Game drawn by repetition"]

1. d4 {[%clk 0:03:00.9]} 1... Nf6 {[%clk 0:02:59.7]} 2. Nc3 {[%clk 0:03:01.3]}
2... g6 {[%clk 0:02:58.1]} 3. e4 {[%clk 0:03:00.4]} 3... d5 {[%clk 0:02:57.2]}
4. e5 {[%clk 0:02:59.2]} 4... Ne4 {[%clk 0:02:57.1]} 5. Bd3 {[%clk 0:02:56.3]}
5... Nxc3 {[%clk 0:02:56]} 6. bxc3 {[%clk 0:02:57.2]} 6... Bg7 {[%clk
0:02:51.3]} 7. f4 {[%clk 0:02:56]} 7... c5 {[%clk 0:02:48.6]} 8. Nf3 {[%clk
0:02:51.3]} 8... Qa5 {[%clk 0:02:47.4]} 9. Bd2 {[%clk 0:02:47.5]} 9... c4 {[%clk
0:02:46.1]} 10. Be2 {[%clk 0:02:43]} 10... Bf5 {[%clk 0:02:45.6]} 11. O-O {[%clk
0:02:39.3]} 11... Qa4 {[%clk 0:02:42.6]} 12. Ne1 {[%clk 0:02:34.7]} 12... e6
{[%clk 0:02:38.3]} 13. g4 {[%clk 0:02:25.5]} 13... Be4 {[%clk 0:02:36.5]} 14.
Bf3 {[%clk 0:02:26.1]} 14... Nc6 {[%clk 0:02:23.9]} 15. Bxe4 {[%clk 0:01:35.6]}
15... dxe4 {[%clk 0:02:24.8]} 16. Qe2 {[%clk 0:01:33.8]} 16... Ne7 {[%clk
0:02:18.1]} 17. Qxe4 {[%clk 0:01:30.5]} 17... Nd5 {[%clk 0:02:17.5]} 18. f5
{[%clk 0:01:25.6]} 18... gxf5 {[%clk 0:02:15.4]} 19. gxf5 {[%clk 0:01:26.5]}
19... O-O-O {[%clk 0:02:13.1]} 20. fxe6 {[%clk 0:01:17.5]} 20... fxe6 {[%clk
0:02:11.8]} 21. Qg4 {[%clk 0:01:02.8]} 21... Qd7 {[%clk 0:02:08.7]} 22. Qe2
{[%clk 0:00:44.5]} 22... Qc6 {[%clk 0:01:57.8]} 23. Kh1 {[%clk 0:00:39.9]} 23...
Rdf8 {[%clk 0:01:19.6]} 24. Ng2 {[%clk 0:00:29.9]} 24... Rhg8 {[%clk 0:01:10.3]}
25. Rxf8+ {[%clk 0:00:27.6]} 25... Bxf8 {[%clk 0:01:10.1]} 26. Rg1 {[%clk
0:00:23.5]} 26... b5 {[%clk 0:00:57.3]} 27. Qf3 {[%clk 0:00:14.8]} 27... Be7
{[%clk 0:00:54]} 28. Nf4 {[%clk 0:00:10.2]} 28... Rf8 {[%clk 0:00:46.8]} 29.
Nxd5 {[%clk 0:00:08.4]} 29... exd5 {[%clk 0:00:30.3]} 30. Qh3+ {[%clk 0:00:09]}
30... Kb8 {[%clk 0:00:27.1]} 31. Qxh7 {[%clk 0:00:09]} 31... Qe6 {[%clk
0:00:24.4]} 32. Bg5 {[%clk 0:00:08.7]} 32... Rf7 {[%clk 0:00:18.1]} 33. Qg8+
{[%clk 0:00:08.2]} 33... Kb7 {[%clk 0:00:17.5]} 34. Bxe7 {[%clk 0:00:08.8]}
34... Qxe7 {[%clk 0:00:18.2]} 35. Qg5 {[%clk 0:00:07.5]} 35... Qe6 {[%clk
0:00:17.8]} 36. Qg6 {[%clk 0:00:07.6]} 36... Qe7 {[%clk 0:00:16.8]} 37. Qg5
{[%clk 0:00:07.3]} 37... Qe6 {[%clk 0:00:17]} 38. Qg6 {[%clk 0:00:07.9]} 38...
Qe7 {[%clk 0:00:17.1]} 39. Qg5 {[%clk 0:00:08.5]} 1/2-1/2

[Event "Early-Titled-Tuesday-Blitz-September-26-2023"]
[Site "Chess.com"]
[Date "2023.09.26"]
[Round "3"]
[White "ChessQueen"]
[Black "Eloist"]
[Result "1-0"]
[WhiteElo "2736"]
[BlackElo "2492"]
[TimeControl "180+1"]
[EndTime "8:28:14 PDT"]
[Termination "ChessQueen won on time"]

1. d4 {[%clk 0:02:59.8]} 1... e6 {[%clk 0:02:52.7]} 2. e4 {[%clk 0:02:59.4]}
2... d5 {[%clk 0:02:51.1]} 3. exd5 {[%clk 0:02:59.7]} 3... exd5 {[%clk
0:02:50.7]} 4. Nf3 {[%clk 0:03:00.3]} 4... Bf5 {[%clk 0:02:49.4]} 5. Bd3 {[%clk
0:02:54.1]} 5... Bxd3 {[%clk 0:02:48.3]} 6. Qxd3 {[%clk 0:02:54.3]} 6... Nc6
{[%clk 0:02:48.3]} 7. O-O {[%clk 0:02:53.7]} 7... Bd6 {[%clk 0:02:48]} 8. Qb5
{[%clk 0:02:48.2]} 8... a6 {[%clk 0:02:41.9]} 9. Qb3 {[%clk 0:02:29]} 9... Nge7
{[%clk 0:02:39.8]} 10. Bg5 {[%clk 0:02:27.4]} 10... f6 {[%clk 0:02:38.7]} 11.
Bh4 {[%clk 0:02:26]} 11... O-O {[%clk 0:02:35.2]} 12. c3 {[%clk 0:02:23.7]}
12... Qd7 {[%clk 0:02:30.4]} 13. Nbd2 {[%clk 0:02:21.3]} 13... b5 {[%clk
0:02:20]} 14. Rfe1 {[%clk 0:02:19.8]} 14... Na5 {[%clk 0:02:14.2]} 15. Qc2
{[%clk 0:02:20]} 15... Nc4 {[%clk 0:02:12.1]} 16. a4 {[%clk 0:02:15.1]} 16...
Qf5 {[%clk 0:02:04.5]} 17. Qc1 {[%clk 0:01:42.8]} 17... Ng6 {[%clk 0:01:58.8]}
18. Bg3 {[%clk 0:01:42.5]} 18... Nf4 {[%clk 0:01:55]} 19. Nxc4 {[%clk
0:01:36.8]} 19... bxc4 {[%clk 0:01:44.5]} 20. Bxf4 {[%clk 0:01:36.4]} 20... Bxf4
{[%clk 0:01:43.8]} 21. Qd1 {[%clk 0:01:35.6]} 21... Rfe8 {[%clk 0:01:37.9]} 22.
b3 {[%clk 0:01:24.3]} 22... Rxe1+ {[%clk 0:01:34.6]} 23. Nxe1 {[%clk 0:01:24.1]}
23... cxb3 {[%clk 0:01:00.6]} 24. Qxb3 {[%clk 0:01:23.1]} 24... Re8 {[%clk
0:00:56.1]} 25. Nf3 {[%clk 0:01:20.8]} 25... c6 {[%clk 0:00:36.8]} 26. c4 {[%clk
0:01:04.4]} 26... Qe6 {[%clk 0:00:29.1]} 27. cxd5 {[%clk 0:00:57.9]} 27... Qxd5
{[%clk 0:00:28.9]} 28. Qc2 {[%clk 0:00:49.3]} 28... Rb8 {[%clk 0:00:21.5]} 29.
Re1 {[%clk 0:00:41.7]} 29... g6 {[%clk 0:00:20]} 30. h4 {[%clk 0:00:40.4]} 30...
Kf7 {[%clk 0:00:19.9]} 31. h5 {[%clk 0:00:38.8]} 31... Qb3 {[%clk 0:00:19.4]}
32. Qxc6 {[%clk 0:00:37.2]} 32... Qb7 {[%clk 0:00:15.2]} 33. Qe6+ {[%clk
0:00:35.5]} 33... Kg7 {[%clk 0:00:15]} 34. d5 {[%clk 0:00:31.6]} 34... Qf7
{[%clk 0:00:12.1]} 35. Qe4 {[%clk 0:00:26.5]} 35... Bd6 {[%clk 0:00:10.5]} 36.
Nd4 {[%clk 0:00:26.3]} 36... Rb4 {[%clk 0:00:08.4]} 37. Ne6+ {[%clk 0:00:25.8]}
37... Kg8 {[%clk 0:00:07.2]} 38. Qc2 {[%clk 0:00:23.9]} 38... Qb7 {[%clk
0:00:07]} 39. hxg6 {[%clk 0:00:22.4]} 39... Rb2 {[%clk 0:00:06.6]} 40. gxh7+
{[%clk 0:00:22.2]} 40... Kh8 {[%clk 0:00:06.9]} 41. Qg6 {[%clk 0:00:21.3]} 1-0

[Event "Early-Titled-Tuesday-Blitz-September-26-2023"]
[Site "Chess.com"]
[Date "2023.09.26"]
[Round "3"]
[White "Alexei_Gubajdullin"]
[Black "kuanysh1981"]
[Result "0-1"]
[WhiteElo "2713"]
[BlackElo "2507"]
[TimeControl "180+1"]
[EndTime "8:28:14 PDT"]
[Termination "kuanysh1981 won on time"]

1. d4 {[%clk 0:03:00.9]} 1... Nf6 {[%clk 0:02:59.3]} 2. Nf3 {[%clk 0:03:01.1]}
2... e6 {[%clk 0:02:59.4]} 3. Bf4 {[%clk 0:03:01.7]} 3... d5 {[%clk 0:02:59]} 4.
e3 {[%clk 0:03:02.1]} 4... Be7 {[%clk 0:02:56.3]} 5. Nbd2 {[%clk 0:03:02]} 5...
Nh5 {[%clk 0:02:56.2]} 6. Be5 {[%clk 0:03:01.2]} 6... Nd7 {[%clk 0:02:52.6]} 7.
Bd3 {[%clk 0:03:00.1]} 7... Nxe5 {[%clk 0:02:51.5]} 8. dxe5 {[%clk 0:03:00]}
8... g6 {[%clk 0:02:51.2]} 9. g4 {[%clk 0:02:48]} 9... Ng7 {[%clk 0:02:50.3]}
10. h3 {[%clk 0:02:41.6]} 10... c5 {[%clk 0:02:38.8]} 11. c4 {[%clk 0:02:39.3]}
11... a6 {[%clk 0:02:38]} 12. Qc2 {[%clk 0:02:36.2]} 12... Bd7 {[%clk
0:02:33.8]} 13. O-O-O {[%clk 0:02:35.6]} 13... b5 {[%clk 0:02:31.1]} 14. cxd5
{[%clk 0:02:28.3]} 14... exd5 {[%clk 0:02:32]} 15. Kb1 {[%clk 0:02:24.1]} 15...
Ne6 {[%clk 0:02:18.4]} 16. h4 {[%clk 0:02:23.1]} 16... Qb6 {[%clk 0:02:07]} 17.
h5 {[%clk 0:02:23]} 17... O-O-O {[%clk 0:02:06.8]} 18. Ka1 {[%clk 0:01:53.3]}
18... Kb8 {[%clk 0:02:06.6]} 19. Nb1 {[%clk 0:01:53.3]} 19... Bc6 {[%clk
0:02:03.9]} 20. Be2 {[%clk 0:01:53]} 20... d4 {[%clk 0:01:53.3]} 21. exd4 {[%clk
0:01:43.9]} 21... Nxd4 {[%clk 0:01:52.1]} 22. Nxd4 {[%clk 0:01:40.7]} 22... Bxh1
{[%clk 0:01:51.6]} 23. Nf3 {[%clk 0:01:31.6]} 23... Bg2 {[%clk 0:01:36.8]} 24.
Rg1 {[%clk 0:01:29.7]} 24... Bxf3 {[%clk 0:01:33.7]} 25. Bxf3 {[%clk 0:01:29.7]}
25... Rd4 {[%clk 0:01:33.9]} 26. Re1 {[%clk 0:01:10]} 26... Rhd8 {[%clk
0:01:31.9]} 27. e6 {[%clk 0:01:08.9]} 27... Rf8 {[%clk 0:01:15.8]} 28. exf7
{[%clk 0:00:46.5]} 28... Rxf7 {[%clk 0:01:16.7]} 29. Qe2 {[%clk 0:00:46.1]}
29... Qd6 {[%clk 0:01:03.1]} 30. hxg6 {[%clk 0:00:38.7]} 30... hxg6 {[%clk
0:01:04]} 31. Nc3 {[%clk 0:00:38.1]} 31... c4 {[%clk 0:01:04]} 32. Bh1 {[%clk
0:00:26.4]} 32... b4 {[%clk 0:00:55.9]} 33. Ne4 {[%clk 0:00:26.2]} 33... Qe5
{[%clk 0:00:54.5]} 34. Qe3 {[%clk 0:00:21.3]} 34... Rf4 {[%clk 0:00:43.2]} 35.
Qe2 {[%clk 0:00:15.2]} 35... Bf6 {[%clk 0:00:40.4]} 36. f3 {[%clk 0:00:13.2]}
36... c3 {[%clk 0:00:33]} 37. bxc3 {[%clk 0:00:12.6]} 37... bxc3 {[%clk
0:00:32.5]} 38. Rb1+ {[%clk 0:00:12.7]} 38... Ka7 {[%clk 0:00:32.2]} 39. Qc2
{[%clk 0:00:12.8]} 39... Rfxe4 {[%clk 0:00:29.2]} 40. fxe4 {[%clk 0:00:12.6]}
40... Rd2 {[%clk 0:00:28.3]} 0-1